bitfinex/quotes_BTCUSD_20250326
["timestamp","ask_amount","ask_price","bid_price","bid_amount"]
[1743001920167,0.01833907,87041.0,87040.0,0.97742785]
[1743001920983,0.01833907,87041.0,87040.0,0.59712]
[1743001920984,0.24811507,87041.0,87040.0,0.59712]
[1743001921186,0.55960307,87041.0,87040.0,0.59612]
[1743001921393,1.17817307,87041.0,87040.0,0.59612]
[1743001921599,1.14845307,87041.0,87040.0,0.59512]
[1743001922419,1.14845307,87041.0,87040.0,0.59612]
[1743001922546,1.14845307,87041.0,87040.0,0.59512]
[1743001922754,1.1304532,87041.0,87040.0,0.59512]
[1743001922950,1.1304532,87041.0,87040.0,0.59612]
[1743001923174,1.2620532,87041.0,87040.0,0.002]
[1743001923615,1.3620532,87041.0,87040.0,0.002]
[1743001923819,0.622228,87018.0,87017.0,0.59704]
[1743001924017,1.312167,87018.0,87017.0,0.59704]
[1743001924222,1.601093,87018.0,87017.0,0.59704]
[1743001925697,1.61909802,87018.0,87017.0,0.59704]
[1743001926271,1.61909802,87018.0,87017.0,0.59904]
[1743001926445,1.61909802,87018.0,87017.0,0.59704]
[1743001928566,1.18696402,87018.0,87017.0,0.5972094]
[1743001928774,1.58397202,87018.0,87017.0,0.5972094]
[1743001929215,0.72112902,87018.0,87017.0,0.5972094]
[1743001929420,0.55933302,87018.0,87017.0,0.5972094]
[1743001930287,0.31800502,87018.0,87017.0,0.5972094]
[1743001930498,0.54784202,87018.0,87017.0,0.5972094]
[1743001930707,0.55933302,87018.0,87017.0,0.5972094]
[1743001931141,0.01800502,87018.0,87017.0,0.8385414]
[1743001932780,0.3,87023.0,87020.0,0.229831]
[1743001932981,0.241311,87025.0,87021.0,0.229828]
[1743001933305,0.3,87023.0,87021.0,0.229828]
[1743001933961,0.529825,87023.0,87019.0,0.241324]
[1743001934137,0.229826,87022.0,87019.0,0.229834]
[1743001934365,0.542315,87023.0,87020.0,0.229831]
[1743001934571,0.229827,87022.0,87018.0,0.011491]
[1743001935014,0.229834,87019.0,87017.0,0.5972094]
[1743001935221,0.3,87018.0,87017.0,0.5972094]
[1743001935645,0.3,87018.0,87017.0,0.8385414]
[1743001935856,0.31800477,87018.0,87017.0,0.8385414]
[1743001936099,0.01800477,87018.0,87017.0,0.95279904]
[1743001936307,7.7e-07,87018.0,87017.0,1.09683989]
[1743001936519,0.001,87023.0,87022.0,0.241317]
[1743001937147,0.01900094,87023.0,87022.0,0.241317]
[1743001937352,0.01800094,87023.0,87022.0,0.29286552]
[1743001938584,0.01900094,87023.0,87022.0,0.29286552]
[1743001938787,0.01900094,87023.0,87022.0,0.30740637]
[1743001939198,9.4e-07,87023.0,87022.0,0.38860637]
[1743001940806,0.00100094,87023.0,87022.0,0.38860637]
[1743001941193,1.4e-07,87041.0,87040.0,0.241267]
[1743001941395,3.4e-07,87042.0,87041.0,0.38740485]
[1743001942206,3.4e-07,87042.0,87041.0,0.38640485]
[1743001942592,3.4e-07,87042.0,87041.0,0.38540485]
[1743001942915,0.00100034,87042.0,87041.0,0.38840485]
[1743001943126,3.4e-07,87042.0,87041.0,0.49966249]
[1743001943581,0.00100034,87042.0,87041.0,0.50266249]
[1743001943804,0.00100034,87042.0,87041.0,0.244264]
[1743001944407,0.00200034,87042.0,87041.0,0.249264]
[1743001944870,0.00100034,87042.0,87041.0,0.246264]
[1743001945150,3.4e-07,87042.0,87041.0,0.247264]
[1743001945353,3.4e-07,87042.0,87041.0,0.253264]
[1743001945588,3.4e-07,87042.0,87041.0,0.247264]
[1743001945791,3.4e-07,87042.0,87041.0,0.253264]
[1743001946223,3.4e-07,87042.0,87041.0,0.3509714]
[1743001946453,0.01799901,87042.0,87041.0,0.3509714]
[1743001947037,3.4e-07,87042.0,87041.0,0.3509714]
[1743001947944,3.4e-07,87042.0,87041.0,0.253264]
[1743001949194,3.4e-07,87042.0,87041.0,0.012]
[1743001949532,3.4e-07,87042.0,87041.0,0.241776]
[1743001950144,0.54126234,87042.0,87041.0,0.012]
[1743001950729,1.97082734,87042.0,87041.0,0.012]
[1743001950937,0.541328,87018.0,87017.0,0.0001694]
[1743001951127,2.785933,87018.0,87017.0,0.0001694]
[1743001951377,2.671101,87018.0,87017.0,0.0001694]
[1743001951581,2.351303,87018.0,87017.0,0.0001694]
[1743001951788,2.34383129,87018.0,87017.0,0.0001694]
[1743001952533,2.34383129,87018.0,87017.0,0.0011694]
[1743001952763,2.12237629,87018.0,87017.0,0.0021694]
[1743001954175,2.12237629,87018.0,87017.0,0.0011694]
[1743001959221,1.98325629,87018.0,87017.0,0.0011694]
[1743001959465,0.93576429,87018.0,87017.0,0.0011694]
[1743001961326,0.55933429,87018.0,87017.0,0.0011694]
[1743001961490,1.72334129,87018.0,87017.0,0.0011694]
[1743001962630,1.705335,87018.0,87017.0,0.0011694]
[1743001962838,1.406907,87018.0,87017.0,0.0011694]
[1743001963048,1.648235,87018.0,87017.0,0.0011694]
[1743001965836,1.66624092,87018.0,87017.0,0.0011694]
[1743001966442,0.31800592,87018.0,87017.0,0.0011694]
[1743001966651,0.54784292,87018.0,87017.0,0.0011694]
[1743001966855,0.55933392,87018.0,87017.0,0.0011694]
[1743001967058,0.74374392,87018.0,87017.0,0.0011694]
[1743001968283,0.73225292,87018.0,87017.0,0.0011694]
[1743001968764,0.74374392,87018.0,87017.0,0.0011694]
[1743001971163,0.50241592,87018.0,87017.0,0.0011694]
[1743001971381,0.74374392,87018.0,87017.0,0.0011694]
[1743001973404,0.31800592,87018.0,87017.0,0.0011694]
[1743001973628,0.32949692,87018.0,87017.0,0.0011694]
[1743001973842,1.11701592,87018.0,87017.0,0.0011694]
[1743001974277,1.11701592,87018.0,87017.0,0.2425014]
[1743001975118,0.31800592,87018.0,87017.0,0.2425014]
[1743001975554,0.3,87018.0,87017.0,0.2425014]
[1743002007790,5.4e-07,87059.0,87058.0,1.26453549]
[1743002009212,5.4e-07,87059.0,87058.0,1.38563549]
[1743002010114,0.0001695,87092.0,87091.0,0.241126]
[1743002010354,0.0001695,87092.0,87091.0,1.38440546]
[1743002010754,0.0001695,87092.0,87091.0,1.47374393]
[1743002011471,0.0001695,87092.0,87091.0,1.47674393]
[1743002012087,0.0001695,87092.0,87091.0,1.47774393]
[1743002012497,0.0001695,87092.0,87091.0,1.48274393]
[1743002012719,0.0001695,87092.0,87091.0,1.40394631]
[1743002013126,0.0011695,87092.0,87091.0,1.40794631]
[1743002024552,0.0011695,87092.0,87091.0,1.25456546]
[1743002025794,0.0001695,87092.0,87091.0,1.24556546]
[1743002026335,0.0001695,87092.0,87091.0,1.25256546]
[1743002028639,0.5298115,87092.0,87091.0,0.60364]
[1743002028834,0.5891935,87092.0,87091.0,0.60364]
[1743002030392,0.3480695,87092.0,87091.0,0.833284]
[1743002030524,0.3480695,87092.0,87091.0,0.844766]
[1743002031329,0.3480695,87092.0,87091.0,0.833284]
[1743002031528,0.5891935,87092.0,87091.0,0.60364]
[1743002031734,0.9426935,87092.0,87091.0,0.60364]
[1743002032938,0.9426935,87092.0,87091.0,0.59964]
[1743002033392,0.9426935,87092.0,87091.0,0.60164]
[1743002033913,0.9426935,87092.0,87091.0,0.59964]
[1743002034327,0.9426935,87092.0,87091.0,0.60164]
[1743002034891,0.9426935,87092.0,87091.0,0.005]
[1743002035951,0.9426935,87092.0,87091.0,0.003]
[1743002036141,0.9426935,87092.0,87091.0,0.004]
[1743002036824,0.9426935,87092.0,87091.0,0.003]
[1743002039578,0.9426935,87092.0,87066.0,0.5966]
[1743002039579,0.011485,87067.0,87066.0,0.5966]
[1743002039780,1.632332,87067.0,87066.0,0.5966]
[1743002040996,1.632332,87067.0,87066.0,0.6006]
[1743002041532,1.632332,87067.0,87066.0,0.004]
[1743002041731,0.541212,87060.0,87059.0,0.0003388]
[1743002042574,1.785396,87060.0,87059.0,0.0003388]
[1743002042789,1.833896,87060.0,87059.0,0.0003388]
[1743002044396,1.835896,87060.0,87059.0,0.0003388]
[1743002045000,1.82441,87060.0,87059.0,0.0003388]
[1743002046171,1.835896,87060.0,87059.0,0.0003388]
[1743002047067,1.84582145,87060.0,87059.0,0.0003388]
[1743002047540,1.61609545,87060.0,87059.0,0.0003388]
[1743002048656,1.84582145,87060.0,87059.0,0.0003388]
[1743002049012,1.85730745,87060.0,87059.0,0.0003388]
[1743002053597,1.95730745,87060.0,87059.0,0.0003388]
[1743002054207,5.71312345,87060.0,87059.0,0.0003388]
[1743002055758,5.71812345,87060.0,87059.0,0.0003388]
[1743002055969,5.696712,87060.0,87059.0,0.0003388]
[1743002056962,0.546215,87059.0,87058.0,6e-07]
[1743002057169,0.546215,87059.0,87044.0,0.01]
[1743002057170,0.641254,87045.0,87044.0,6e-07]
[1743002057366,1.242974,87045.0,87044.0,6e-07]
[1743002057567,0.287001,87028.0,87027.0,0.0001694]
[1743002057771,5.725721,87028.0,87027.0,0.0001694]
[1743002058393,3.062719,87028.0,87027.0,0.0001694]
[1743002090795,0.000339,87045.0,87044.0,1.39373631]
[1743002100998,0.000339,87045.0,87044.0,1.39873631]
[1743002101202,0.0827,87081.0,87080.0,0.229673]
[1743002101412,0.0001694,87091.0,87080.0,0.229673]
[1743002101413,0.0771,87086.0,87080.0,0.5968]
[1743002101834,0.3,87084.0,87080.0,0.5968]
[1743002102039,0.3,87082.0,87080.0,0.5968]
[1743002102850,0.02150597,87081.0,87080.0,0.5968]
[1743002103462,0.02150597,87081.0,87080.0,0.5978]
[1743002103942,0.02150597,87081.0,87080.0,0.5988]
[1743002104759,0.34485997,87081.0,87080.0,0.5988]
[1743002104977,1.16311997,87081.0,87080.0,0.002]
[1743002105200,1.16311997,87081.0,87060.0,0.40779946]
[1743002105201,0.4261,87061.0,87060.0,0.40779946]
[1743002105412,0.3,87060.0,87056.0,0.59676]
[1743002106287,0.529727,87060.0,87056.0,0.59676]
[1743002106515,0.3,87057.0,87056.0,0.59676]
[1743002106770,0.3,87057.0,87056.0,0.60076]
[1743002106978,0.54122,87057.0,87056.0,0.60076]
[1743002107383,0.54122,87057.0,87056.0,0.59876]
[1743002107532,0.54122,87057.0,87056.0,0.59676]
[1743002108160,0.56272597,87057.0,87056.0,0.59676]
[1743002108772,1.91392597,87057.0,87056.0,0.59676]
[1743002109002,1.91392597,87057.0,87056.0,0.59976]
[1743002109137,1.99552597,87057.0,87056.0,0.59776]
[1743002109919,1.99552597,87057.0,87056.0,0.59876]
[1743002112385,2.04142597,87057.0,87056.0,0.59876]
[1743002112792,2.04142597,87057.0,87056.0,0.002]
[1743002112993,0.665551,87046.0,87045.0,0.0001695]
[1743002113200,3.03949,87046.0,87045.0,0.0001695]
[1743002113603,3.09540931,87046.0,87045.0,0.0001695]
[1743002114718,3.09540931,87046.0,87027.0,0.0001695]
[1743002114719,0.241301,87028.0,87027.0,0.0001695]
[1743002114953,0.623001,87028.0,87027.0,0.0001695]
[1743002115156,0.670801,87028.0,87027.0,0.0001695]
[1743002115319,2.448167,87028.0,87027.0,0.0001695]
[1743002116070,2.50408631,87028.0,87027.0,0.0001695]
[1743002116411,2.50508631,87028.0,87027.0,0.0001695]
[1743002118037,2.50608631,87028.0,87027.0,0.0001695]
[1743002121080,0.66947,87003.0,86965.0,0.0786]
[1743002121286,5.80791,87003.0,86969.0,0.10284438]
[1743002121493,4.168619,87003.0,86969.0,0.10284438]
[1743002121690,4.030179,87003.0,86969.0,0.10284438]
[1743002121901,1.48257731,87003.0,86978.0,0.229942]
[1743002122113,1.17542731,87003.0,86991.0,0.59704]
[1743002122519,1.17842731,87003.0,86991.0,0.59704]
[1743002122979,1.17542731,87003.0,86991.0,0.59704]
[1743002123183,0.93405731,87003.0,86991.0,0.59704]
[1743002123555,0.94855031,87003.0,86991.0,0.59704]
[1743002124156,0.94555031,87003.0,86991.0,0.59704]
[1743002124556,0.94655031,87003.0,86991.0,0.59704]
[1743002125563,0.94555031,87003.0,87002.0,0.0094953]
[1743002125743,0.35691931,87003.0,87002.0,0.0094953]
[1743002125918,0.35591931,87003.0,87002.0,0.0094953]
[1743002126369,0.35691931,87003.0,87002.0,0.0094953]
[1743002126571,0.32150597,87003.0,87002.0,0.0094953]
[1743002127357,0.32250597,87003.0,87002.0,0.0094953]
[1743002127527,0.33499897,87003.0,87002.0,0.0094953]
[1743002127713,0.312493,87003.0,87002.0,0.0094953]
[1743002127916,0.301,87003.0,87002.0,0.0094953]
[1743002128986,0.3,87003.0,87002.0,0.0094953]
[1743002131472,0.529877,87003.0,87002.0,0.0094953]
[1743002131776,0.54137,87003.0,87002.0,0.0094953]
[1743002132120,0.56275155,87003.0,87002.0,0.0094953]
[1743002132547,0.32138155,87003.0,87002.0,0.0094953]
[1743002133130,0.55125855,87003.0,87002.0,0.0094953]
[1743002133332,0.5854886,87003.0,87002.0,0.0094953]
[1743002133516,0.5969816,87003.0,87002.0,0.0094953]
[1743002134003,0.5969816,87003.0,87002.0,0.6066553]
[1743002135546,2.3826826,87003.0,87002.0,0.6066553]
[1743002135749,1.9346316,87003.0,87002.0,0.6066553]
[1743002136893,1.9356316,87003.0,87002.0,0.6066553]
[1743002137245,1.9346316,87003.0,87002.0,0.6066553]
[1743002138597,1.9356316,87003.0,87002.0,0.6066553]
[1743002138790,0.62999969,87003.0,87002.0,0.6066553]
[1743002139009,0.62999969,87003.0,87002.0,0.55480863]
[1743002139010,3.31228569,87003.0,87002.0,0.55480863]
[1743002139177,3.2802676,87003.0,87002.0,0.55480863]
[1743002139739,3.3605676,87003.0,87002.0,0.55480863]
[1743002140046,3.39358569,87003.0,87002.0,0.55480863]
[1743002140360,3.3615676,87003.0,87002.0,0.55480863]
[1743002140602,3.3615676,87003.0,86988.0,0.0003392]
[1743002140603,0.541409,86989.0,86988.0,0.0003392]
[1743002140785,1.004448,86989.0,86988.0,0.0003392]
[1743002142109,1.0600596,86989.0,86988.0,0.0003392]
[1743002205046,0.60024262,86989.0,86988.0,8e-07]
[1743002205666,0.05883362,86989.0,86988.0,8e-07]
[1743002206063,0.35883362,86989.0,86988.0,8e-07]
[1743002206267,0.05883362,86989.0,86988.0,8e-07]
[1743002207048,0.02446832,86989.0,86988.0,8e-07]
[1743002207229,0.003,86989.0,86988.0,8e-07]
[1743002207391,0.232914,86989.0,86988.0,8e-07]
[1743002207589,0.229914,86989.0,86988.0,8e-07]
[1743002207826,0.541404,86991.0,86988.0,8e-07]
[1743002207982,0.302,86989.0,86988.0,8e-07]
[1743002208582,0.3,86989.0,86988.0,8e-07]
[1743002208943,0.3,86989.0,86988.0,0.0020008]
[1743002210488,0.311495,86989.0,86988.0,0.0020008]
[1743002211151,0.420525,86989.0,86988.0,0.0020008]
[1743002212154,0.420525,86989.0,86988.0,8e-07]
[1743002212361,0.311495,86989.0,86988.0,8e-07]
[1743002212561,0.311495,86989.0,86988.0,0.0010008]
[1743002213628,0.460315,86989.0,86988.0,0.0010008]
[1743002214609,0.690229,86989.0,86988.0,0.0010008]
[1743002215670,0.773329,86989.0,86988.0,0.0010008]
[1743002216113,0.57932,86989.0,86971.0,0.0003388]
[1743002216287,0.624556,86972.0,86971.0,0.0003388]
[1743002216514,5.762716,86972.0,86971.0,0.0003388]
[1743002216687,4.926631,86972.0,86971.0,0.0003388]
[1743002216898,0.1,86954.0,86953.0,9e-07]
[1743002217099,0.1,86954.0,86949.0,4e-07]
[1743002217100,0.541517,86950.0,86949.0,4e-07]
[1743002217247,0.530051,86937.0,86936.0,0.0001695]
[1743002217483,0.530051,86937.0,86936.0,5e-07]
[1743002217484,0.811863,86937.0,86936.0,5e-07]
[1743002217687,0.779713,86937.0,86936.0,5e-07]
[1743002218673,0.641553,86937.0,86936.0,5e-07]
[1743002218925,0.779713,86937.0,86936.0,5e-07]
[1743002219097,0.679713,86937.0,86936.0,5e-07]
[1743002220336,0.541553,86937.0,86936.0,5e-07]
[1743002220546,0.230046,86939.0,86936.0,5e-07]
[1743002220758,0.13816,86948.0,86936.0,5e-07]
[1743002220948,0.011502,86937.0,86936.0,5e-07]
[1743002221121,0.311502,86937.0,86936.0,5e-07]
[1743002222262,0.312502,86937.0,86936.0,5e-07]
[1743002222787,0.230049,86939.0,86936.0,5e-07]
[1743002222788,0.3,86939.0,86936.0,5e-07]
[1743002223243,0.3,86937.0,86936.0,5e-07]
[1743002224602,0.23005,86938.0,86936.0,5e-07]
[1743002224841,0.311502,86937.0,86936.0,5e-07]
[1743002225082,0.3,86937.0,86936.0,5e-07]
[1743002225317,0.311502,86937.0,86936.0,5e-07]
[1743002225547,0.3,86937.0,86936.0,5e-07]
[1743002225783,0.230051,86937.0,86936.0,5e-07]
[1743002226020,0.241553,86937.0,86936.0,5e-07]
[1743002226956,0.541553,86937.0,86936.0,5e-07]
[1743002227198,0.3,86937.0,86936.0,5e-07]
[1743002227784,0.011499,86959.0,86940.0,0.011502]
[1743002227985,0.229997,86958.0,86944.0,0.24457185]
[1743002228191,0.3,86957.0,86944.0,0.24457185]
[1743002228398,0.3,86957.0,86944.0,0.241532]
[1743002228571,0.229994,86959.0,86945.0,0.01454085]
[1743002228829,0.229994,86959.0,86947.0,0.01454085]
[1743002229035,0.229984,86963.0,86949.0,0.230018]
[1743002229207,0.229984,86963.0,86949.0,0.30393139]
[1743002229208,0.3,86961.0,86949.0,0.30393139]
[1743002229412,0.3,86961.0,86950.0,0.0137999]
[1743002229761,0.3,86961.0,86949.0,0.00229988]
[1743002229966,0.241482,86963.0,86946.0,0.01454085]
[1743002229967,0.3,86957.0,86946.0,0.01454085]
[1743002230176,0.0115,86956.0,86945.0,0.0499]
[1743002230382,0.3,86948.0,86947.0,0.1382]
[1743002230856,0.3,86948.0,86939.0,0.01454085]
[1743002231091,0.3,86948.0,86940.0,0.01454085]
[1743002231500,0.0115,86954.0,86940.0,0.01454085]
[1743002231711,0.0115,86953.0,86942.0,0.01454085]
[1743002231917,0.311501,86943.0,86936.0,0.40779996]
[1743002232117,0.3,86945.0,86936.0,0.40779996]
[1743002232674,0.53003,86945.0,86936.0,0.40779996]
[1743002232902,0.3,86945.0,86936.0,0.40779996]
[1743002233328,0.001,86943.0,86936.0,0.41279996]
[1743002233902,0.001,86943.0,86936.0,0.41979996]
[1743002234093,0.001,86943.0,86937.0,0.23005]
[1743002234297,0.001,86943.0,86938.0,0.230047]
[1743002234497,0.001,86945.0,86939.0,0.230043]
[1743002234698,0.001,86945.0,86936.0,0.63985296]
[1743002234916,0.230028,86946.0,86936.0,0.40779996]
[1743002235119,0.3,86946.0,86936.0,0.40779996]
[1743002235357,0.3,86941.0,86936.0,0.40779996]
[1743002235963,0.3,86941.0,86936.0,0.41279996]
[1743002236184,0.3,86939.0,86936.0,0.41279996]
[1743002236871,0.3,86939.0,86936.0,0.41479996]
[1743002237073,0.3,86937.0,86936.0,0.40979996]
[1743002237302,0.3,86937.0,86936.0,0.40779996]
[1743002237508,0.3,86937.0,86936.0,0.0050005]
[1743002237509,0.541553,86937.0,86936.0,0.0050005]
[1743002237688,0.841274,86937.0,86936.0,5e-07]
[1743002237892,0.541553,86937.0,86936.0,0.0020005]
[1743002238128,0.541553,86937.0,86936.0,0.0070005]
[1743002238331,0.918183,86937.0,86936.0,0.0050005]
[1743002238735,0.791719,86937.0,86936.0,0.0070005]
[1743002239544,0.791719,86937.0,86936.0,0.0020005]
[1743002239545,0.871719,86937.0,86936.0,0.0020005]
[1743002239736,0.920119,86937.0,86936.0,0.0040005]
[1743002240071,0.920119,86937.0,86936.0,0.0020005]
[1743002240270,0.919119,86937.0,86936.0,5e-07]
[1743002240476,0.669953,86937.0,86936.0,0.0010005]
[1743002240681,0.669953,86937.0,86936.0,5e-07]
[1743002240900,3.95636,86937.0,86936.0,5e-07]
[1743002241139,0.670953,86937.0,86936.0,0.0010005]
[1743002241338,0.669953,86937.0,86936.0,0.0010005]
[1743002241804,4.092978,86937.0,86936.0,0.0010005]
[1743002242011,4.092978,86937.0,86936.0,5e-07]
[1743002242211,0.808153,86937.0,86936.0,5e-07]
[1743002243363,0.809153,86937.0,86936.0,5e-07]
[1743002243545,0.670953,86937.0,86936.0,5e-07]
[1743002243745,0.542553,86937.0,86936.0,5e-07]
[1743002245009,0.544553,86937.0,86936.0,5e-07]
[1743002245194,0.543553,86937.0,86936.0,5e-07]
[1743002245555,0.541553,86937.0,86936.0,5e-07]
[1743002246361,0.230051,86938.0,86936.0,5e-07]
[1743002246362,0.011502,86938.0,86936.0,5e-07]
[1743002246563,0.011501,86942.0,86936.0,5e-07]
[1743002246768,0.241551,86938.0,86936.0,5e-07]
[1743002246889,0.541553,86937.0,86936.0,5e-07]
[1743002249513,0.3,86937.0,86936.0,5e-07]
[1743002251317,0.3,86937.0,86936.0,0.0020005]
[1743002251430,0.530051,86937.0,86936.0,0.0020005]
[1743002251633,0.541553,86937.0,86936.0,5e-07]
[1743002251840,0.541553,86937.0,86936.0,0.0020005]
[1743002252237,0.3,86937.0,86936.0,5e-07]
[1743002252482,0.3,86937.0,86936.0,0.0020005]
[1743002252897,0.3,86937.0,86936.0,0.0040005]
[1743002253507,0.3,86937.0,86936.0,0.2320545]
[1743002316809,0.0003388,86969.0,86968.0,0.67580711]
[1743002317010,0.0003388,86969.0,86968.0,0.68180711]
[1743002317325,0.0003388,86969.0,86968.0,0.44034011]
[1743002317530,0.0003388,86969.0,86968.0,0.43434011]
[1743002318029,0.0003388,86969.0,86968.0,0.44034011]
[1743002318395,0.0003388,86969.0,86968.0,0.55476715]
[1743002319287,0.0003388,86969.0,86968.0,0.44050951]
[1743002319698,0.3003388,86969.0,86968.0,0.42596866]
[1743002320103,0.5303048,86969.0,86968.0,0.42596866]
[1743002320451,0.5891028,86969.0,86968.0,0.0181694]
[1743002320835,0.5891028,86969.0,86968.0,0.0121694]
[1743002321189,0.5891028,86969.0,86968.0,0.0181694]
[1743002321789,0.5891028,86969.0,86968.0,0.0001694]
[1743002322018,0.5891028,86969.0,86968.0,0.0061694]
[1743002322242,0.5891028,86969.0,86968.0,0.0101694]
[1743002322439,0.5891028,86969.0,86968.0,0.0041694]
[1743002322801,0.5891028,86969.0,86968.0,0.0081694]
[1743002323840,0.3476388,86969.0,86968.0,0.0081694]
[1743002324048,0.3003388,86969.0,86968.0,0.02271025]
[1743002326201,0.5418028,86969.0,86968.0,0.02271025]
[1743002326341,0.5418028,86969.0,86968.0,0.0081694]
[1743002326999,0.5383628,86969.0,86968.0,0.0081694]
[1743002328444,0.5383628,86969.0,86968.0,0.06871834]
[1743002328566,0.5383628,86969.0,86968.0,0.0081694]
[1743002328774,0.2968988,86969.0,86968.0,0.0081694]
[1743002329582,0.2972376,86969.0,86968.0,0.0081694]
[1743002329894,0.5387016,86969.0,86968.0,0.0081694]
[1743002330303,0.55671496,86969.0,86968.0,0.0081694]
[1743002330508,0.5387016,86969.0,86968.0,0.0081694]
[1743002332017,0.6150016,86969.0,86968.0,0.0081694]
[1743002332425,1.3136556,86969.0,86968.0,0.0081694]
[1743002333397,1.2190956,86969.0,86968.0,4e-07]
[1743002333724,0.6625016,86969.0,86968.0,0.0020004]
[1743002333921,0.6625016,86969.0,86968.0,4e-07]
[1743002334279,0.6625016,86969.0,86954.0,0.0001694]
[1743002334280,0.541504,86955.0,86954.0,0.0001694]
[1743002335278,0.55952104,86955.0,86954.0,0.0001694]
[1743002335505,0.55952104,86955.0,86954.0,0.0021694]
[1743002336113,0.63702104,86955.0,86954.0,0.0021694]
[1743002336974,0.63702104,86955.0,86954.0,0.0041694]
[1743002342960,0.619004,86955.0,86954.0,0.0041694]
[1743002343363,0.530004,86955.0,86954.0,0.0041694]
[1743002343482,0.541504,86955.0,86954.0,0.0041694]
[1743002344561,0.011499,86964.0,86954.0,0.07887919]
[1743002344743,0.011498,86965.0,86955.0,0.01454085]
[1743002344993,0.3120128,86969.0,86957.0,0.01454085]
[1743002344994,0.2303128,86969.0,86957.0,0.01454085]
[1743002345195,0.011499,86962.0,86957.0,0.01454085]
[1743002345367,0.529996,86958.0,86957.0,0.01454085]
[1743002345524,0.541495,86958.0,86957.0,0.01454085]
[1743002345708,0.529998,86957.0,86956.0,0.40779926]
[1743002345923,0.541497,86957.0,86956.0,0.40779926]
[1743002346127,0.617597,86957.0,86956.0,0.40779926]
[1743002348063,0.617597,86957.0,86956.0,0.41079926]
[1743002348605,0.617597,86957.0,86956.0,0.41379926]
[1743002348815,0.541497,86957.0,86956.0,0.41379926]
[1743002350684,0.589697,86957.0,86956.0,0.41379926]
[1743002350849,0.589697,86957.0,86956.0,0.006]
[1743002351417,0.541497,86957.0,86956.0,0.006]
[1743002351840,0.541497,86957.0,86956.0,0.003]
[1743002352038,0.229998,86957.0,86956.0,0.003]
[1743002352295,0.3,86955.0,86954.0,0.0001694]
[1743002353359,0.311498,86965.0,86954.0,0.0001694]
[1743002353678,0.3,86959.0,86955.0,0.01454085]
[1743002354700,0.3,86957.0,86955.0,0.01454085]
[1743002355254,0.241501,86956.0,86955.0,0.01754085]
[1743002355460,0.241501,86956.0,86955.0,0.003]
[1743002356089,0.230001,86956.0,86955.0,0.003]
[1743002356364,0.011499,86958.0,86955.0,0.003]
[1743002356533,0.300433,86955.0,86954.0,0.0011694]
[1743002356738,0.300433,86955.0,86954.0,0.01571025]
[1743002356907,0.300433,86955.0,86954.0,0.01471025]
[1743002357531,0.000433,86955.0,86954.0,0.01471025]
[1743002358094,0.000433,86955.0,86954.0,0.01871025]
[1743002359460,0.000433,86955.0,86954.0,0.02271025]
[1743002359673,0.000433,86955.0,86954.0,0.43050951]
[1743002359817,0.000433,86955.0,86954.0,0.66051551]
[1743002360434,0.000433,86955.0,86954.0,0.43050951]
[1743002361080,0.300433,86955.0,86954.0,0.41596866]
[1743002363177,0.311933,86955.0,86954.0,0.41596866]
[1743002363335,0.530437,86955.0,86954.0,0.41596866]
[1743002363536,0.300433,86955.0,86954.0,0.41596866]
[1743002364381,0.541937,86955.0,86954.0,0.41596866]
[1743002365475,0.541937,86955.0,86954.0,0.0081694]
[1743002365901,0.55995324,86955.0,86954.0,0.0081694]
[1743002366122,0.31844924,86955.0,86954.0,0.0081694]
[1743002366332,0.31844924,86955.0,86954.0,0.02271025]
[1743002369431,0.01844924,86955.0,86954.0,0.38985531]
[1743002369631,0.01844924,86955.0,86954.0,0.40209625]
[1743002370477,0.01844924,86955.0,86954.0,0.25621625]
[1743002370677,0.01844924,86955.0,86954.0,0.01471025]
[1743002370883,0.01844924,86955.0,86954.0,0.0051694]
[1743002371998,0.01844924,86955.0,86954.0,0.01971025]
[1743002372198,0.01844924,86955.0,86954.0,0.02200989]
[1743002372500,0.01844924,86955.0,86954.0,0.02700989]
[1743002372648,0.000433,86955.0,86954.0,0.02471025]
[1743002373217,0.000433,86955.0,86954.0,0.62215025]
[1743002374263,0.000433,86955.0,86954.0,0.85215625]
[1743002374738,0.000433,86955.0,86954.0,0.96641389]
[1743002374948,0.000433,86955.0,86954.0,0.62215025]
[1743002375131,0.000433,86955.0,86954.0,0.85215625]
[1743002375886,0.000433,86955.0,86954.0,1.35305551]
[1743002376091,0.000433,86955.0,86954.0,1.43581124]
[1743002377058,0.01844682,86955.0,86954.0,1.43581124]
[1743002378469,0.01844682,86955.0,86954.0,1.45621047]
[1743002378680,0.01844682,86955.0,86954.0,1.43581124]
[1743002379922,0.01844682,86955.0,86954.0,1.57365124]
[1743002382649,0.000433,86955.0,86954.0,1.57365124]
[1743002383860,0.000433,86955.0,86954.0,1.57361124]
[1743002385139,0.000433,86955.0,86954.0,1.56361124]
[1743002385323,0.000433,86955.0,86954.0,1.68886888]
[1743002385637,0.000433,86955.0,86954.0,1.69486888]
[1743002385873,0.0007718,86955.0,86954.0,1.68886888]
[1743002386102,0.0002521,86955.0,86954.0,1.68886888]
[1743002386349,0.0002521,86955.0,86954.0,1.82812652]
[1743002386738,0.0002521,86955.0,86954.0,1.83412652]
[1743002387117,0.01826343,86955.0,86954.0,1.83412652]
[1743002387322,0.0003388,86958.0,86957.0,0.271497]
[1743002387481,0.0003388,86958.0,86957.0,0.51635122]
[1743002388129,0.0003388,86968.0,86967.0,0.66847131]
[1743002388335,0.0003388,86968.0,86967.0,0.70422704]
[1743002389126,0.0003388,86968.0,86967.0,0.84198704]
[1743002389399,0.0003388,86968.0,86967.0,0.84798704]
[1743002389567,0.0003388,86968.0,86967.0,0.96224468]
[1743002390191,0.0003388,86968.0,86967.0,0.81348468]
[1743002390392,0.0003388,86968.0,86967.0,0.95124468]
[1743002390596,0.0003388,86968.0,86967.0,0.95724468]
[1743002391099,0.01834936,86968.0,86967.0,0.95724468]
[1743002391302,0.01834936,86968.0,86967.0,0.96324468]
[1743002391603,0.01834936,86968.0,86967.0,0.91548895]
[1743002391775,0.01834936,86968.0,86967.0,0.96814041]
[1743002392179,0.01834936,86968.0,86967.0,1.04254041]
[1743002392420,0.0003388,86968.0,86967.0,1.08754041]
[1743002392645,0.0003388,86968.0,86967.0,1.09354041]